bitfinex-derivatives/quotes_BTCF0:USTF0_20251103
["timestamp","ask_amount","ask_price","bid_price","bid_amount"]
[1762157714642,1.09921473,107620.0,107610.0,0.0015]
[1762157715551,1.09921473,107620.0,107610.0,0.01486]
[1762157719248,0.98520841,107620.0,107610.0,0.05981]
[1762157721352,0.98520841,107620.0,107610.0,0.03663]
[1762157722447,0.98520841,107620.0,107610.0,0.05981]
[1762157722848,0.98520841,107620.0,107610.0,0.03663]
[1762157724952,0.98520841,107620.0,107610.0,0.01486]
[1762157726350,0.98520841,107620.0,107610.0,0.03663]
[1762157726553,0.98520841,107620.0,107610.0,0.05954]
[1762157727744,1.05555054,107620.0,107610.0,0.05854]
[1762157727948,1.05655054,107620.0,107610.0,0.05954]
[1762157729257,1.08981173,107620.0,107610.0,0.05954]
[1762157729553,1.17055686,107620.0,107610.0,0.01486]
[1762157730156,0.3608,107610.0,107600.0,0.01359]
[1762157730453,0.69749424,107610.0,107600.0,0.01359]
[1762157730654,0.66425758,107610.0,107600.0,0.01359]
[1762157730958,1.0105839,107610.0,107590.0,0.03671]
[1762157731159,0.99749118,107600.0,107590.0,0.03671]
[1762157731345,1.05364803,107600.0,107590.0,0.01359]
[1762157731550,1.13692121,107600.0,107590.0,0.01359]
[1762157732956,1.10368632,107600.0,107590.0,0.01659]
[1762157733257,1.10368632,107600.0,107590.0,0.01759]
[1762157733759,1.13687456,107600.0,107590.0,0.01659]
[1762157733959,1.52443456,107600.0,107590.0,0.004]
[1762157734150,1.49112645,107600.0,107590.0,0.004]
[1762157734355,0.3608,107590.0,107580.0,0.0167542]
[1762157734562,0.69733177,107590.0,107580.0,0.0167542]
[1762157734859,0.69739778,107590.0,107580.0,0.0167542]
[1762157735052,0.92975778,107590.0,107580.0,0.0167542]
[1762157735255,0.93424314,107590.0,107580.0,0.0031642]
[1762157735557,1.03168588,107590.0,107570.0,0.01331]
[1762157735758,1.10667768,107580.0,107570.0,0.01331]
[1762157735964,1.13198152,107580.0,107570.0,0.01331]
[1762157736360,1.13657405,107580.0,107570.0,0.01331]
[1762157736662,1.13657405,107580.0,107570.0,0.01281]
[1762157736960,1.13657405,107580.0,107570.0,0.03893]
[1762157737259,1.14348405,107580.0,107560.0,0.04603]
[1762157737460,0.65730628,107570.0,107560.0,0.05884]
[1762157737662,0.68271226,107570.0,107560.0,0.05884]
[1762157737862,0.04365,107560.0,107550.0,0.05884]
[1762157738060,0.97872648,107560.0,107550.0,0.05884]
[1762157738263,0.98321184,107560.0,107550.0,0.05884]
[1762157739670,0.04365,107550.0,107540.0,0.06048548]
[1762157739857,0.67067176,107550.0,107540.0,0.02476548]
[1762157740259,0.67515712,107550.0,107540.0,0.00164548]
[1762157740464,0.04365,107530.0,107520.0,0.05934]
[1762157740657,1.08633861,107530.0,107520.0,0.05934]
[1762157740864,1.20034493,107530.0,107520.0,0.05934]
[1762157741461,1.20483029,107530.0,107520.0,0.05934]
[1762157742353,1.31883661,107530.0,107520.0,0.05934]
[1762157742567,1.20483029,107530.0,107520.0,0.05934]
[1762157742864,1.31883661,107530.0,107520.0,0.05934]
[1762157743167,1.20583029,107530.0,107520.0,0.06034]
[1762157743474,1.20583029,107530.0,107520.0,0.06734]
[1762157743858,1.09182397,107530.0,107520.0,0.06734]
[1762157744059,1.20583029,107530.0,107520.0,0.06734]
[1762157744270,1.21274029,107530.0,107520.0,0.05453]
[1762157744662,1.20583029,107530.0,107520.0,0.0675]
[1762157745265,1.20483029,107530.0,107520.0,0.0665]
[1762157745466,1.20583029,107530.0,107520.0,0.0645]
[1762157746063,1.31983661,107530.0,107520.0,0.0645]
[1762157746264,1.32574661,107530.0,107520.0,0.04996]
[1762157746565,1.32674661,107530.0,107520.0,0.04996]
[1762157746764,1.32674661,107530.0,107520.0,0.02712]
[1762157746966,0.00557397,107530.0,107520.0,0.62449896]
[1762157747168,0.00557397,107530.0,107520.0,0.98529896]
[1762157747169,0.01929397,107530.0,107520.0,0.98529896]
[1762157747469,0.34137397,107530.0,107520.0,0.98529896]
[1762157747661,0.34137397,107530.0,107520.0,0.87129264]
[1762157748355,0.34137397,107530.0,107520.0,0.98529896]
[1762157748555,0.34137397,107530.0,107520.0,0.98129896]
[1762157748764,0.34137397,107530.0,107520.0,0.75077896]
[1762157748970,0.34137397,107530.0,107520.0,0.98629896]
[1762157749469,0.34137397,107530.0,107520.0,0.98929896]
[1762157750371,0.34137397,107530.0,107520.0,0.79004416]
[1762157750669,0.38614397,107530.0,107520.0,0.79004416]
[1762157751263,0.38614397,107530.0,107520.0,0.19672416]
[1762157751668,0.38614397,107530.0,107520.0,0.42924416]
[1762157751871,0.38614397,107530.0,107520.0,0.19672416]
[1762157752166,0.38614397,107530.0,107520.0,0.42924416]
[1762157752371,0.38614397,107530.0,107520.0,0.19672416]
[1762157752668,0.74694397,107530.0,107520.0,0.05396]
[1762157752870,0.38614397,107530.0,107520.0,0.05396]
[1762157753071,0.38614397,107530.0,107520.0,0.19672416]
[1762157754267,0.74694397,107530.0,107520.0,0.17388416]
[1762157754464,0.74694397,107530.0,107520.0,0.0085]
[1762157755265,0.06406397,107530.0,107520.0,0.15126416]
[1762157755464,0.38610397,107530.0,107520.0,0.15126416]
[1762157755665,0.06406397,107530.0,107520.0,0.15126416]
[1762157755864,0.38614397,107530.0,107520.0,0.38378416]
[1762157756071,0.38614397,107530.0,107520.0,0.15126416]
[1762157756268,0.38614397,107530.0,107520.0,0.38378416]
[1762157756474,0.38514397,107530.0,107520.0,0.14826416]
[1762157756774,0.40114397,107530.0,107520.0,0.14926416]
[1762157756973,0.40114397,107530.0,107520.0,0.38178416]
[1762157757168,0.40114397,107530.0,107520.0,0.14926416]
[1762157757363,0.40114397,107530.0,107520.0,0.38178416]
[1762157757574,0.07906397,107530.0,107520.0,0.38178416]
[1762157757876,0.42618397,107530.0,107520.0,0.50506416]
[1762157758075,0.42618397,107530.0,107520.0,0.14426416]
[1762157758268,0.43018397,107530.0,107520.0,0.14426416]
[1762157758471,0.43018397,107530.0,107520.0,0.37678416]
[1762157758868,0.42418397,107530.0,107520.0,0.50706416]
[1762157759063,0.10206397,107530.0,107520.0,0.73958416]
[1762157759374,0.42414397,107530.0,107520.0,0.73958416]
[1762157760475,0.42414397,107530.0,107520.0,0.83615251]
[1762157760873,0.42414397,107530.0,107520.0,0.23602]
[1762157761076,0.42414397,107530.0,107520.0,0.24283251]
[1762157761282,0.42414397,107530.0,107520.0,0.60363251]
[1762157761673,0.10206397,107530.0,107520.0,0.24283251]
[1762157762176,0.42410397,107530.0,107520.0,0.24283251]
[1762157762678,0.42410397,107530.0,107520.0,0.60363251]
[1762157762883,0.10206397,107530.0,107520.0,0.83615251]
[1762157763075,0.08002397,107530.0,107520.0,0.83615251]
[1762157763277,0.04357397,107530.0,107520.0,0.92917511]
[1762157763678,0.05729397,107530.0,107520.0,1.25125511]
[1762157763978,0.01372,107540.0,107530.0,0.0930139]
[1762157764177,0.01372,107540.0,107530.0,0.60013251]
[1762157764378,0.03645,107540.0,107530.0,0.83261251]
[1762157764776,0.01372,107550.0,107540.0,0.0930053]
[1762157764976,0.01382782,107550.0,107540.0,0.92561781]
[1762157765181,0.01367625,107550.0,107540.0,0.92561781]
[1762157766188,0.02667625,107550.0,107540.0,0.92961781]
[1762157767284,0.02667625,107550.0,107540.0,1.25189781]
[1762157767791,0.03467625,107550.0,107540.0,1.25189781]
[1762157767991,0.03467625,107550.0,107540.0,1.24989781]
[1762157769388,0.03467625,107550.0,107540.0,1.31663256]
[1762157771789,0.03467625,107550.0,107540.0,1.43663256]
[1762157772395,0.01372,107560.0,107540.0,1.43663256]
[1762157772396,0.01372,107560.0,107550.0,0.0929966]
[1762157772594,0.01372,107560.0,107550.0,0.92556911]
[1762157772899,0.01372,107560.0,107550.0,1.04556911]
[1762157773198,0.01372,107570.0,107560.0,0.092988]
[1762157773495,0.01382025,107570.0,107560.0,1.01524051]
[1762157773692,0.03611025,107570.0,107560.0,1.24764051]
[1762157773896,0.05753025,107570.0,107560.0,1.24764051]
[1762157774799,0.05753025,107570.0,107560.0,1.008308]
[1762157774999,0.05753025,107570.0,107560.0,1.24764051]
[1762157775200,0.01982025,107570.0,107560.0,1.24864051]
[1762157775697,0.07953025,107570.0,107560.0,1.24964051]
[1762157776499,0.03582025,107570.0,107560.0,1.24964051]
[1762157777502,0.05811025,107570.0,107560.0,1.24964051]
[1762157777899,0.03582025,107570.0,107560.0,1.24964051]
[1762157778095,0.01382025,107570.0,107560.0,1.24764051]
[1762157778296,0.03082025,107570.0,107560.0,1.24864051]
[1762157778888,0.02482025,107570.0,107560.0,1.24864051]
[1762157779092,0.01982025,107570.0,107560.0,1.24764051]
[1762157779298,0.02482025,107570.0,107560.0,1.24764051]
[1762157779494,0.01372,107580.0,107570.0,0.0929793]
[1762157779701,0.01372,107580.0,107570.0,0.69311181]
[1762157779903,0.01372,107580.0,107570.0,0.92551181]
[1762157780498,0.05743,107580.0,107570.0,0.92551181]
[1762157780898,0.01372,107580.0,107570.0,0.92551181]
[1762157781995,0.01972,107580.0,107570.0,0.92551181]
[1762157782201,0.02099663,107580.0,107570.0,0.92551181]
[1762157783504,0.01499663,107580.0,107570.0,0.92551181]
[1762157784303,0.05870663,107580.0,107570.0,0.92551181]
[1762157785496,0.01499663,107580.0,107570.0,0.92551181]
[1762157785805,0.05869663,107580.0,107570.0,0.92551181]
[1762157787500,0.01499663,107580.0,107570.0,1.04551181]
[1762157787704,0.01329,107590.0,107580.0,0.0929707]
[1762157788003,0.03546,107600.0,107590.0,0.092962]
[1762157788302,0.01329,107600.0,107590.0,0.69309451]
[1762157788498,0.01329,107600.0,107590.0,0.92545451]
[1762157788704,0.03546,107600.0,107590.0,0.92545451]
[1762157789200,0.03846,107610.0,107600.0,0.0929534]
[1762157789508,0.05987,107610.0,107600.0,1.01500591]
[1762157789705,0.05987,107610.0,107600.0,1.24732591]
[1762157790096,0.01629,107610.0,107600.0,1.24732591]
[1762157791303,0.03846,107610.0,107600.0,1.24732591]
[1762157791897,0.01629,107610.0,107600.0,1.24732591]
[1762157792506,0.05987,107610.0,107600.0,1.24732591]
[1762157792801,0.01629,107610.0,107600.0,1.24732591]
[1762157793707,0.03846,107610.0,107600.0,1.24732591]
[1762157794008,0.05987,107610.0,107600.0,1.01492591]
[1762157796914,0.05987,107610.0,107600.0,0.92197251]
[1762157797103,0.05987,107610.0,107600.0,0.60013251]
[1762157797409,0.05987,107610.0,107600.0,1.01484591]
[1762157797410,0.01629,107610.0,107600.0,1.01484591]
[1762157797909,0.03846,107610.0,107600.0,1.01484591]
[1762157798410,0.05987,107610.0,107600.0,1.01484591]
[1762157802603,0.06114617,107610.0,107600.0,1.01484591]
[1762157802801,0.01756617,107610.0,107600.0,1.24716591]
[1762157806914,0.06156617,107610.0,107600.0,1.24716591]
[1762157807305,0.06156617,107610.0,107600.0,0.92540591]
[1762157807510,0.06156617,107610.0,107600.0,1.01472591]
[1762157807811,0.01756617,107610.0,107600.0,1.24704591]
[1762157809113,0.01756617,107610.0,107600.0,1.31378066]
[1762157809712,0.03999617,107610.0,107600.0,1.31378066]
[1762157810417,0.06156617,107610.0,107600.0,1.31378066]
[1762157812315,0.03999617,107610.0,107600.0,1.42378066]
[1762157813416,0.01756617,107610.0,107600.0,1.56378066]
[1762157813619,0.01352,107620.0,107600.0,1.56378066]
[1762157813620,0.01352,107620.0,107610.0,0.0929447]
[1762157813916,0.05752,107630.0,107620.0,0.092936]
[1762157814116,0.07980308,107630.0,107620.0,1.01450851]
[1762157814312,0.07980308,107630.0,107620.0,0.93929634]
[1762157814313,0.05752,107630.0,107620.0,0.93929634]
[1762157814705,0.05752,107630.0,107620.0,1.05329077]
[1762157815310,0.05752,107630.0,107620.0,0.93929634]
[1762157815606,0.07980324,107630.0,107620.0,0.88917063]
[1762157816217,0.07980324,107630.0,107620.0,0.93929654]
[1762157817016,0.07980324,107630.0,107620.0,0.93929644]
[1762157817706,0.05752,107630.0,107620.0,0.93929644]
[1762157818217,0.07952917,107630.0,107620.0,0.93929644]
[1762157819819,0.07952917,107630.0,107620.0,0.84636034]
[1762157820315,0.07952917,107630.0,107620.0,1.07438283]
[1762157820515,0.05752,107630.0,107620.0,1.07438283]
[1762157820717,0.07935267,107630.0,107620.0,1.07438283]
[1762157821219,0.0793513,107630.0,107620.0,1.07438283]
[1762157821414,0.0793513,107630.0,107620.0,0.96021719]
[1762157821720,0.0793513,107630.0,107620.0,0.63893719]
[1762157822420,0.0793513,107630.0,107620.0,0.58881128]
[1762157823321,0.05681,107620.0,107610.0,0.41092591]
[1762157823521,0.0786413,107620.0,107610.0,0.52493155]
[1762157824420,0.19264694,107620.0,107610.0,0.16413155]
[1762157824624,0.05681,107610.0,107600.0,0.52493155]
[1762157824820,0.05681,107610.0,107600.0,0.63893719]
[1762157825820,0.05681,107610.0,107600.0,0.75294283]
[1762157826016,0.08081,107610.0,107600.0,0.75294283]
[1762157826222,0.08081,107610.0,107600.0,0.41092591]
[1762157826524,0.08081,107610.0,107600.0,0.63893719]
[1762157830624,0.08081,107610.0,107600.0,0.79576962]
[1762157830830,0.05924,107610.0,107600.0,1.18402437]
[1762157831026,0.08081,107610.0,107600.0,1.18402437]
[1762157831223,0.08081,107610.0,107600.0,0.74905475]
[1762157831424,0.08081,107610.0,107600.0,1.09107167]
[1762157832122,0.07981,107610.0,107600.0,1.09107167]
[1762157832322,0.07981,107610.0,107600.0,1.03418183]
[1762157833628,0.07781,107610.0,107600.0,1.03418183]
[1762157833928,0.05781,107610.0,107600.0,1.03418183]
[1762157834123,0.07581,107610.0,107600.0,1.03418183]
[1762157835029,0.07581,107610.0,107600.0,0.96744708]
[1762157838933,0.07581,107610.0,107600.0,1.06039958]
[1762157838934,0.03181,107610.0,107600.0,1.06039958]
[1762157839123,0.05653,107620.0,107610.0,0.0929439]
[1762157839326,0.05653,107620.0,107610.0,0.5867287]
[1762157840537,0.05853,107620.0,107610.0,0.5867287]
[1762157841132,0.05853,107620.0,107610.0,0.6796725]
[1762157841433,0.07953,107620.0,107610.0,0.6796725]
[1762157841737,0.023,107620.0,107610.0,0.6796725]
[1762157841938,0.021,107620.0,107610.0,0.6796725]
[1762157842136,0.023,107620.0,107610.0,0.6796725]
[1762157842732,0.08045,107620.0,107610.0,0.50336354]
[1762157842930,0.08045,107620.0,107610.0,0.58677988]
[1762157844039,0.05945,107620.0,107610.0,0.90829988]
[1762157844239,0.06945,107620.0,107610.0,0.90829988]
[1762157844432,0.06745,107620.0,107610.0,0.90829988]
[1762157845248,0.06945,107620.0,107610.0,0.90829988]
[1762157845951,0.06945,107620.0,107610.0,0.82488354]
[1762157846252,0.06945,107620.0,107610.0,0.90829988]
[1762157847253,0.06745,107620.0,107610.0,1.00124368]
[1762157847456,0.06945,107620.0,107610.0,0.91782734]
[1762157847953,0.06745,107620.0,107610.0,0.91782734]
[1762157849152,0.06745,107620.0,107610.0,0.82488354]
[1762157849456,0.06745,107620.0,107610.0,0.89153333]
[1762157850356,0.06745,107620.0,107610.0,0.91782734]
[1762157850856,0.06745,107620.0,107610.0,1.00124368]
[1762157851148,0.07045,107620.0,107610.0,1.00124368]
[1762157851551,0.07245,107620.0,107610.0,1.00124368]
[1762157851850,0.05945,107620.0,107610.0,1.00124368]
[1762157852057,0.07245,107620.0,107610.0,0.90829988]
[1762157854458,0.07245,107620.0,107610.0,0.99380746]
[1762157857354,0.07372618,107620.0,107610.0,0.99380746]
[1762157866055,0.05105618,107620.0,107610.0,0.99380746]
[1762157866355,0.07312618,107620.0,107610.0,0.99380746]
[1762157870066,0.07312618,107620.0,107610.0,1.11051868]
[1762157870263,0.07312618,107620.0,107610.0,1.02710234]
[1762157872467,0.03000618,107620.0,107610.0,1.02710234]
[1762157872868,0.05245618,107620.0,107610.0,1.02710234]
[1762157873067,0.07452618,107620.0,107610.0,1.02710234]
[1762157873362,0.06152618,107620.0,107610.0,0.91039112]
[1762157873569,0.07452618,107620.0,107610.0,0.91039112]
[1762157873867,0.07252618,107620.0,107610.0,0.91039112]
[1762157874164,0.07452618,107620.0,107610.0,0.91039112]
[1762157874563,0.07452618,107620.0,107610.0,1.02710234]
[1762157875064,0.07452618,107620.0,107610.0,0.91039112]
[1762157875468,0.07252618,107620.0,107610.0,0.91039112]
[1762157876267,0.05952618,107620.0,107610.0,0.91039112]
[1762157876469,0.07252618,107620.0,107610.0,0.91039112]
[1762157876963,0.05045618,107620.0,107610.0,1.00333502]
[1762157877166,0.04745618,107620.0,107610.0,1.00333502]
[1762157877469,0.06952618,107620.0,107610.0,1.08699664]
[1762157878466,0.06952618,107620.0,107610.0,0.99405274]
[1762157879671,0.06952618,107620.0,107610.0,1.08699674]
[1762157880464,0.06952618,107620.0,107610.0,1.08696464]
[1762157881171,0.06952618,107620.0,107610.0,0.99402064]
[1762157881777,0.06952618,107620.0,107610.0,0.08366162]
[1762157881962,0.06952618,107620.0,107600.0,0.08366162]
[1762157881963,0.77666569,107620.0,107600.0,0.08366162]
[1762157882166,0.05842,107610.0,107600.0,0.08366162]
[1762157882361,0.02245,107600.0,107590.0,0.67519235]
[1762157882571,0.05842,107600.0,107590.0,0.55848113]
[1762157882774,0.05842,107590.0,107580.0,0.75834896]
[1762157882969,0.04330664,107590.0,107580.0,0.59161864]
[1762157883573,0.04458282,107590.0,107580.0,0.59161864]
[1762157884469,0.04758282,107590.0,107580.0,0.70563815]
[1762157886074,0.05458282,107590.0,107580.0,0.70563815]
[1762157886680,0.05458282,107590.0,107580.0,0.58892693]
[1762157886872,0.04758282,107590.0,107580.0,0.36088791]
[1762157887074,0.05058282,107590.0,107580.0,0.67244276]
[1762157887779,0.05058282,107590.0,107580.0,0.55842325]
[1762157888169,0.05158282,107590.0,107580.0,0.55842325]
[1762157888874,0.05858282,107590.0,107580.0,0.55842325]
[1762157889177,0.05858282,107590.0,107580.0,0.67244276]
[1762157889572,0.05858282,107590.0,107580.0,0.58892693]
[1762157890379,0.04758282,107590.0,107580.0,0.58892693]
[1762157890580,0.01227618,107590.0,107580.0,1.02679815]
[1762157890877,0.06969618,107590.0,107580.0,1.02679815]
[1762157891474,0.02517618,107590.0,107580.0,1.02679815]
[1762157891674,0.02517618,107590.0,107580.0,0.99354159]
[1762157891877,0.07082618,107590.0,107580.0,0.99354159]
[1762157892779,0.02517618,107590.0,107580.0,0.76535139]
[1762157893277,0.04773618,107590.0,107580.0,0.67238159]
[1762157893484,0.07082618,107590.0,107580.0,0.67238159]
[1762157893672,0.04773618,107590.0,107580.0,0.67238159]
[1762157893872,0.07082618,107590.0,107580.0,0.44434257]
[1762157894073,0.07082618,107590.0,107580.0,0.55836208]
[1762157895076,0.39198618,107590.0,107580.0,0.44434257]
[1762157895275,0.62434618,107590.0,107580.0,0.44434257]
[1762157895482,0.39198618,107590.0,107580.0,0.44434257]
[1762157895674,0.39198618,107590.0,107580.0,0.08354257]
[1762157895878,1.09916569,107590.0,107580.0,0.06685601]
[1762157896181,0.05853,107580.0,107570.0,0.08345466]
[1762157896377,0.05853,107570.0,107560.0,0.20016588]
[1762157896674,1.08822569,107570.0,107560.0,0.08345466]
[1762157897477,0.97420618,107570.0,107560.0,0.08345466]
[1762157897882,0.97420618,107570.0,107560.0,0.09545466]
[1762157898187,0.74180618,107570.0,107560.0,0.25304417]
[1762157898375,0.74280618,107570.0,107560.0,0.26204417]
[1762157898576,0.38200618,107570.0,107560.0,0.62284417]
[1762157898778,0.38200618,107570.0,107560.0,0.26204417]
[1762157898977,0.38200618,107570.0,107560.0,0.27304417]
[1762157899678,0.39600618,107570.0,107560.0,0.26304417]
[1762157900285,0.39600618,107570.0,107560.0,0.14902466]
[1762157900482,0.39500618,107570.0,107560.0,0.12802466]
[1762157900683,0.39500618,107570.0,107560.0,0.09545466]
[1762157900993,0.98820618,107570.0,107560.0,0.09545466]
[1762157901189,0.97420618,107570.0,107560.0,0.011]
[1762157901390,0.99520618,107570.0,107560.0,0.012]
[1762157901683,0.99529741,107570.0,107560.0,0.012]
[1762157902083,0.99929741,107570.0,107560.0,0.001]
[1762157902276,0.05853,107560.0,107550.0,0.08345466]
[1762157902481,0.42060618,107560.0,107550.0,0.08345466]
[1762157903686,0.42060618,107560.0,107550.0,0.02181]
[1762157903887,0.05980618,107560.0,107550.0,0.04357]
[1762157905089,0.09680618,107560.0,107550.0,0.04657]
[1762157905495,0.45760618,107560.0,107550.0,0.04657]
[1762157905692,0.09680618,107560.0,107550.0,0.04657]
[1762157905992,0.06083618,107560.0,107550.0,0.65976231]
[1762157906192,0.03827618,107560.0,107550.0,0.83621267]
[1762157906393,0.03827618,107560.0,107550.0,0.75275801]
[1762157906607,0.03827618,107560.0,107550.0,0.86946923]
[1762157907183,0.03827618,107560.0,107550.0,0.99946923]
[1762157907386,9.123e-05,107570.0,107560.0,0.1369771]
[1762157907587,0.03623,107590.0,107580.0,0.0406]
[1762157907881,0.37896,107590.0,107580.0,0.70731488]
[1762157908794,0.003,107590.0,107580.0,1.04143231]
[1762157908987,0.003,107590.0,107580.0,1.12478553]
[1762157909895,0.06025,107590.0,107580.0,1.12478553]
[1762157910291,0.06025,107590.0,107580.0,1.14578553]
[1762157910896,0.06125,107590.0,107580.0,1.12478553]
[1762157911194,0.05825,107590.0,107580.0,1.41322553]
[1762157911388,0.001,107590.0,107580.0,1.41322553]
[1762157911590,0.001,107590.0,107580.0,1.50619533]
[1762157915998,0.02333,107590.0,107580.0,1.41322553]
[1762157916296,0.04462,107590.0,107580.0,1.41322553]
[1762157916495,0.05825,107590.0,107580.0,1.41322553]
[1762157919492,0.001,107590.0,107580.0,1.41322553]
[1762157919795,0.001,107590.0,107580.0,1.50619523]
[1762157920189,0.37869,107610.0,107600.0,0.27983231]
[1762157920389,0.37869,107610.0,107600.0,0.70734477]
[1762157921400,0.37869,107610.0,107600.0,0.64063231]
[1762157921696,0.37969,107610.0,107600.0,0.70463231]
[1762157922685,0.37969,107610.0,107600.0,0.4654]
[1762157926904,0.37969,107610.0,107600.0,0.70463231]
[1762157929603,0.37969,107610.0,107600.0,0.68363231]
[1762157929796,0.37869,107610.0,107600.0,0.65663231]
[1762157929992,0.37869,107610.0,107600.0,0.68263231]
[1762157930201,0.37869,107610.0,107600.0,0.4434]
[1762157930392,0.37869,107610.0,107600.0,0.4274]
[1762157930598,0.37869,107610.0,107600.0,0.4014]
[1762157930798,0.38269,107610.0,107600.0,0.4014]
[1762157931506,0.38269,107610.0,107600.0,0.3811]
[1762157932005,0.38269,107610.0,107600.0,0.4004]
[1762157933005,0.37869,107610.0,107600.0,0.4004]
[1762157934799,0.37869,107610.0,107600.0,0.0396]
[1762157935007,0.05704,107590.0,107580.0,0.54946568]
[1762157935208,0.37816,107590.0,107580.0,0.46611246]
[1762157935506,0.37816,107590.0,107580.0,0.42751246]
[1762157936204,0.37916,107590.0,107580.0,0.44681246]
[1762157936606,0.37916,107590.0,107580.0,0.46611246]
[1762157937006,0.37816,107590.0,107580.0,0.46611246]
[1762157937206,0.37816,107590.0,107580.0,0.48011246]
[1762157937405,0.37816,107590.0,107580.0,0.46081246]
[1762157937908,0.37816,107590.0,107580.0,0.48011246]
[1762157938703,0.37816,107590.0,107580.0,0.49311246]
[1762157938904,0.37816,107590.0,107580.0,0.4264]
[1762157939107,0.37816,107590.0,107580.0,0.4234]
[1762157940816,0.73896,107590.0,107580.0,0.09071246]
[1762157941108,0.73896,107590.0,107580.0,0.024]
[1762157942415,0.73896,107590.0,107580.0,0.17675012]
[1762157943105,0.73896,107590.0,107580.0,0.13815012]
[1762157943306,0.85311012,107590.0,107580.0,0.13815012]
[1762157943506,0.73896,107590.0,107580.0,0.13815012]
[1762157944514,0.73896,107590.0,107580.0,0.15745012]
[1762157944709,0.73896,107590.0,107580.0,0.17675012]
[1762157945311,0.73896,107590.0,107580.0,0.15745012]
[1762157947312,0.73896,107590.0,107580.0,0.17675012]
[1762157948016,0.37816,107590.0,107580.0,0.29090024]
[1762157948313,0.3782,107590.0,107580.0,0.29090024]
[1762157949115,0.739,107590.0,107580.0,0.024]
[1762157949308,0.739,107590.0,107580.0,0.13815012]
[1762157949912,0.85315012,107590.0,107580.0,0.13815012]
[1762157950417,0.87680593,107590.0,107580.0,0.13815012]
[1762157952219,0.87680593,107590.0,107580.0,0.024]
[1762157953305,0.87680593,107590.0,107580.0,0.014]
[1762157953505,0.87680593,107590.0,107580.0,0.016]
[1762157953717,0.87680593,107590.0,107580.0,0.13015012]
[1762157954118,0.76265581,107590.0,107580.0,0.13015012]
[1762157954516,0.87680593,107590.0,107580.0,0.13015012]
[1762157954815,0.76265581,107590.0,107580.0,0.14745012]
[1762157955008,0.76265581,107590.0,107580.0,0.18775012]
[1762157955212,0.76265581,107590.0,107580.0,0.20875012]
[1762157955510,0.76265581,107590.0,107580.0,0.18945012]
[1762157955711,0.739,107590.0,107580.0,0.18945012]
[1762157955917,0.3782,107590.0,107580.0,0.18945012]
[1762157956316,0.3782,107590.0,107580.0,0.19145012]
[1762157956819,0.3782,107590.0,107580.0,0.55225012]
[1762157957120,0.3782,107590.0,107580.0,0.21075012]
[1762157958019,0.37824,107590.0,107580.0,0.32490024]
[1762157958413,0.37824,107590.0,107580.0,0.21075012]
[1762157959016,0.85319012,107590.0,107580.0,0.15115012]
[1762157959316,0.85319012,107590.0,107580.0,0.17515012]
[1762157959508,0.85319012,107590.0,107580.0,0.061]
[1762157960421,0.85319012,107590.0,107580.0,0.21375012]
[1762157960422,0.73904,107590.0,107580.0,0.21375012]
[1762157960619,0.05704,107590.0,107580.0,0.68870024]
[1762157960917,0.37824,107590.0,107580.0,0.68870024]
[1762157961122,0.37824,107590.0,107580.0,0.78166954]
[1762157961423,0.37824,107590.0,107580.0,0.68570024]
[1762157961624,0.37824,107590.0,107580.0,0.77866954]
[1762157961819,0.37824,107590.0,107580.0,0.75766954]
[1762157962012,0.05704,107590.0,107580.0,0.77866954]
[1762157962217,0.37824,107590.0,107580.0,0.74866954]
[1762157962518,0.37824,107590.0,107580.0,0.64870024]
[1762157962720,0.37824,107590.0,107580.0,0.74166954]
[1762157963221,0.37824,107590.0,107580.0,0.72766954]
[1762157963519,0.37824,107590.0,107580.0,0.73966954]
[1762157963822,0.36541,107590.0,107580.0,0.75182954]
[1762157964321,0.36541,107590.0,107580.0,0.74482954]
[1762157964521,0.37874,107590.0,107580.0,0.74266954]
[1762157964823,0.37874,107590.0,107580.0,0.64970024]
[1762157965123,0.37874,107590.0,107580.0,0.64170024]
[1762157965322,0.37974,107590.0,107580.0,0.64170024]
[1762157966022,0.37974,107590.0,107580.0,0.62870024]
[1762157966917,0.38167,107590.0,107580.0,0.62870024]
[1762157967923,0.38067,107590.0,107580.0,0.72166954]
[1762157968326,0.0585,107600.0,107590.0,0.0386]
[1762157968513,0.37966,107600.0,107590.0,0.62770024]
[1762157971320,0.34398,107600.0,107590.0,0.72474094]
[1762157971516,0.0593,107610.0,107600.0,0.131552]
[1762157971719,0.34398,107610.0,107600.0,0.83480236]
[1762157972212,0.02282,107610.0,107600.0,0.72065224]
[1762157973226,0.02282,107610.0,107600.0,0.83480236]
[1762157973616,0.05947,107610.0,107600.0,0.74185036]
[1762157973821,0.05947,107610.0,107600.0,0.3994]
[1762157974120,0.33479,107620.0,107610.0,0.0386]
[1762157974121,0.38046,107620.0,107610.0,0.0386]
[1762157974319,0.40357114,107620.0,107610.0,0.62770024]
[1762157974713,0.40357114,107620.0,107610.0,0.51355012]
[1762157975219,0.40357114,107620.0,107610.0,0.53755012]
[1762157975725,0.40357114,107620.0,107610.0,0.49895012]
[1762157975920,0.40357114,107620.0,107610.0,0.51825012]
[1762157976122,0.40357114,107620.0,107610.0,0.53755012]
[1762157977024,0.08241114,107620.0,107610.0,0.52755012]
[1762157977226,0.08241114,107620.0,107610.0,0.64870024]
[1762157977421,0.05947,107630.0,107620.0,0.1315347]
[1762157977616,0.3670427,107630.0,107620.0,0.75401036]
[1762157977824,0.3898927,107630.0,107620.0,0.75401036]
[1762157978124,0.4036927,107630.0,107620.0,0.62770024]
[1762157978723,0.4036927,107630.0,107620.0,0.64870024]
[1762157979217,0.0825727,107630.0,107620.0,0.64870024]
[1762157980025,0.0825727,107630.0,107620.0,0.68870024]
[1762157981122,0.0825727,107630.0,107620.0,0.57455012]
[1762157981327,0.0825727,107630.0,107620.0,0.4411]
[1762157981528,0.0825727,107630.0,107620.0,0.55525012]
[1762157982330,0.0825727,107630.0,107620.0,0.57455012]
[1762157986628,0.0825727,107630.0,107620.0,0.55525012]
[1762157987029,0.0825727,107630.0,107620.0,0.19445012]
[1762157987528,0.0825727,107630.0,107620.0,0.21375012]
[1762157987932,0.0825727,107630.0,107620.0,0.57455012]
[1762157988133,0.0825727,107630.0,107620.0,0.32790024]
[1762157988937,0.10761118,107630.0,107620.0,0.32790024]
[1762157989236,0.10761118,107630.0,107620.0,0.17345012]
[1762157989424,0.10761118,107630.0,107620.0,0.18845012]
[1762157989736,0.2217613,107630.0,107620.0,0.16915012]
[1762157990339,0.2217613,107630.0,107620.0,0.19445012]
[1762157991144,0.2217613,107630.0,107620.0,0.19145012]
[1762157991444,0.2217613,107630.0,107620.0,0.21075012]